fUSD/lending_fUSD_20240503
["ID","MTS","AMOUNT","RATE_DAILY","PERIOD"]
[325327965,1714729841427,-757.49729662,0.000359,2]
[325327966,1714729841438,-178.4582301,0.000359,2]
[325327967,1714729841447,-178.45822995,0.000359,2]
[325327968,1714729841456,-178.45822995,0.000359,2]
[325327969,1714729841465,-178.45822995,0.000359,2]
[325327970,1714729841475,-178.45822995,0.000359,2]
[325327971,1714729841484,-178.45822995,0.000359,2]
[325327972,1714729841493,-178.45822995,0.000359,2]
[325327973,1714729841503,-178.45822995,0.000359,2]
[325327974,1714729841512,-178.45822995,0.000359,2]
[325327975,1714729841520,-178.45822995,0.000359,2]
[325327976,1714729841530,-178.45822995,0.000359,2]
[325327977,1714729841539,-178.45822995,0.000359,2]
[325327978,1714729841548,-178.45822995,0.000359,2]
[325327979,1714729841557,-178.45822995,0.000359,2]
[325327980,1714729841566,-178.45822995,0.000359,2]
[325327981,1714729841576,-178.45822995,0.000359,2]
[325327982,1714729841585,-178.45822995,0.000359,2]
[325327983,1714729841594,-153.42929399,0.00035954,7]
[325327984,1714729841603,-50000.0,0.00036,16]
[325327985,1714729841612,-50000.0,0.00036,26]
[325327986,1714729841621,-3001.37,0.00036,2]
[325327987,1714729841631,-3000.0,0.00036,2]
[325327988,1714729841639,-3000.0,0.00036,2]
[325327989,1714729841648,-3000.0,0.00036,2]
[325327990,1714729841657,-3000.0,0.00036,2]
[325327991,1714729841666,-826.04,0.00036,2]
[325327992,1714729841675,-612.8789632,0.00036,2]
[325327993,1714729841683,-484.0,0.000361,21]
[325327994,1714729841692,-414.63,0.00036164,2]
[325327995,1714729841702,-906.06,0.000362,2]
[325327996,1714729841711,-566.11,0.000362,7]
[325327997,1714729841722,-150.0,0.00036288,2]
[325327998,1714729841731,-459.40433115,0.00036368,2]
[325327999,1714729841741,-151.0,0.0003644,2]
[325328000,1714729841750,-413.34285884,0.000365,4]
[325328001,1714729841759,-150.39,0.0003653,2]
[325328002,1714729841768,-309.36,0.0003662,2]
[325328003,1714729841778,-288.0,0.0003665,2]
[325328004,1714729841787,-151.87422436,0.00036737,2]
[325328005,1714729841796,-1500.0,0.000368,20]
[325328006,1714729841805,-1513.1,0.000368,18]
[325328007,1714729841814,-10000.0,0.000369,7]
[325328008,1714729841823,-189.66064792,0.000369,9]
[325328009,1714729841833,-20000.0,0.000369,4]
[325328010,1714729841842,-4800.0,0.000369,13]
[325328011,1714729841851,-757.49729662,0.000369,2]
[325328012,1714729841860,-178.45822995,0.00036942,2]
[325328013,1714729841870,-1374.84,0.00036999,7]
[325328014,1714729841879,-50000.0,0.00037,17]
[325328015,1714729841887,-28982.07826322,0.00037,27]
[325328016,1714729842578,-330.13781764,0.00037,27]
[325328017,1714729842590,-1730.84596,0.00037,27]
[325328018,1714729842601,-424.5191321,0.00037,27]
[325328031,1714729842737,-1508.7644094,0.00037,27]
[325328033,1714729842748,-17023.65441764,0.00037,27]
[325328034,1714729842758,-39224.19838232,0.00037,2]
[325328035,1714729842861,-1344.33106011,0.00037,2]
[325328036,1714729842873,-1492.49406776,0.00037,2]
[325328037,1714729842884,-868.82,0.00037,2]
[325328038,1714729842895,-476.82,0.00037,2]
[325328039,1714729842933,-778.93087633,0.00037,2]
[325328040,1714729842945,-1761.45133784,0.00037,2]
[325328042,1714729844103,-373.26563772,0.00026562,2]
[325328043,1714729844115,-1673.32384348,0.00026562,2]
[325328044,1714729844127,-405.75828576,0.00026562,2]
[325328045,1714729844501,-469.67010088,0.00026562,2]
[325328046,1714729844513,-643.92736939,0.00026562,2]
[325328047,1714729844524,-3761.31612055,0.00026562,2]
[325328048,1714729844533,-7500.0,0.00030879,2]
[325328049,1714729844543,-515.76758785,0.00033,120]
[325328050,1714729844552,-172.4552756,0.000334,2]
[325328051,1714729844561,-275499.96080467,0.00037,2]
[325328052,1714729844573,-9451.688092,0.00037,2]
[325328053,1714729844585,-1583.87922487,0.00037,2]
[325328054,1714729844600,-2821.4261541,0.00037,2]
[325328055,1714729844609,-618.0,0.00037,4]
[325328056,1714729844619,-566.11,0.00037,7]
[325328057,1714729844629,-150.0,0.00037044,2]
[325328058,1714729844638,-302.0,0.00037053,4]
[325328059,1714729844648,-139.6838459,0.000371,4]
[325328060,1714729844659,-1347.82605645,0.000371,4]
[325328061,1714729844669,-1008.38,0.00037135,2]
[325328062,1714729844679,-1400.0,0.00037136,10]
[325328063,1714729844688,-1100.0,0.00037136,10]
[325328064,1714729844698,-151.51506521,0.00037179,10]
[325328065,1714729844708,-1036.5531682,0.0003724,5]
[325328066,1714729844718,-1578.78,0.000373,18]
[325328067,1714729844730,-152.0,0.00037357,4]
[325328068,1714729844738,-2000.0,0.000374,19]
[325328069,1714729844747,-342.0,0.000374,11]
[325328070,1714729844757,-20569.4914677,0.00037409,2]
[325328071,1714729844767,-150.39,0.00037443,2]
[325328072,1714729844776,-1000.0,0.00037495,2]
[325328073,1714729844785,-4095.37464348,0.0003759,2]
[325328074,1714729844795,-906.06,0.000376,2]
[325328075,1714729844805,-566.11,0.000376,7]
[325328076,1714729844815,-566.11,0.000376,7]
[325328077,1714729844825,-604.0,0.00037675,7]
[325328078,1714729844834,-1400.0,0.00037684,10]
[325328079,1714729844843,-1100.0,0.00037684,10]
[325328080,1714729844853,-151.87422436,0.0003776,2]
[325328081,1714729844863,-164.20395791,0.000378,2]
[325328082,1714729844872,-150.0,0.00037816,2]
[325328083,1714729844882,-309.36,0.0003784,2]
[325328084,1714729844891,-757.49729662,0.000379,2]
[325328085,1714729844902,-500.0,0.00037958,10]
[325328086,1714729844912,-500.0,0.00037984,10]
[325328087,1714729844921,-500.0,0.00037984,10]
[325328088,1714729844931,-500.0,0.00037984,10]
[325328089,1714729844940,-500.0,0.00037984,10]
[325328090,1714729844950,-500.0,0.00037984,10]
[325328091,1714729844959,-500.0,0.00037984,10]
[325328092,1714729844969,-500.0,0.00037984,10]
[325328093,1714729844980,-500.0,0.00037984,10]
[325328094,1714729844990,-500.0,0.00037984,10]
[325328095,1714729845000,-500.0,0.00037984,10]
[325328096,1714729845009,-500.0,0.00037984,10]
[325328097,1714729845019,-500.0,0.00037984,10]
[325328098,1714729845028,-500.0,0.00037984,10]
[325328099,1714729845038,-500.0,0.00037984,10]
[325328100,1714729845047,-500.0,0.00037984,10]
[325328101,1714729845057,-500.0,0.00037984,10]
[325328102,1714729845066,-500.0,0.00037984,10]
[325328103,1714729845081,-500.0,0.00037984,10]
[325328104,1714729845090,-500.0,0.00037984,10]
[325328105,1714729845100,-500.0,0.00037984,10]
[325328106,1714729845109,-500.0,0.00037984,10]
[325328107,1714729845119,-500.0,0.00037984,10]
[325328108,1714729845128,-500.0,0.00037984,10]
[325328109,1714729845138,-500.0,0.00037984,10]
[325328110,1714729845147,-500.0,0.00037984,10]
[325328111,1714729845157,-500.0,0.00037984,10]
[325328112,1714729845166,-500.0,0.00037984,10]
[325328113,1714729845176,-500.0,0.00037984,10]
[325328114,1714729845185,-500.0,0.00037984,10]
[325328115,1714729845195,-500.0,0.00037984,10]
[325328116,1714729845204,-500.0,0.00037984,10]
[325328117,1714729845213,-500.0,0.00037984,10]
[325328118,1714729845222,-500.0,0.00037984,10]
[325328119,1714729845231,-500.0,0.00037984,10]
[325328120,1714729845241,-500.0,0.00037984,10]
[325328121,1714729845250,-500.0,0.00037984,10]
[325328122,1714729845259,-500.0,0.00037984,10]
[325328123,1714729845268,-500.0,0.00037984,10]
[325328124,1714729845278,-500.0,0.00037984,10]
[325328125,1714729845287,-500.0,0.00037984,10]
[325328126,1714729845296,-500.0,0.00037984,10]
[325328127,1714729845306,-500.0,0.00037984,10]
[325328128,1714729845315,-500.0,0.00037984,10]
[325328129,1714729845331,-500.0,0.00037984,10]
[325328130,1714729845347,-500.0,0.00037984,10]
[325328131,1714729845356,-500.0,0.00037984,10]
[325328132,1714729845366,-500.0,0.00037984,10]
[325328133,1714729845376,-500.0,0.00037984,10]
[325328134,1714729845387,-500.0,0.00037984,10]
[325328135,1714729845401,-500.0,0.00037984,10]
[325328136,1714729845411,-500.0,0.00037984,10]
[325328137,1714729845422,-500.0,0.00037984,10]
[325328138,1714729845433,-500.0,0.00037984,10]
[325328139,1714729845443,-500.0,0.00037984,10]
[325328140,1714729845453,-500.0,0.00037984,10]
[325328141,1714729845462,-500.0,0.00037984,10]
[325328142,1714729845472,-500.0,0.00037984,10]
[325328143,1714729845484,-500.0,0.00037984,10]
[325328144,1714729845494,-500.0,0.00037984,10]
[325328145,1714729845505,-500.0,0.00037984,10]
[325328146,1714729845515,-500.0,0.00037984,10]
[325328147,1714729845524,-500.0,0.00037984,10]
[325328149,1714729845534,-256.0,0.00037984,10]
[325328151,1714729845545,-50000.0,0.00038,18]
[325328154,1714729845555,-50000.0,0.00038,28]
[325328156,1714729845565,-20189.84146377,0.00038,14]
[325328158,1714729845575,-1000.0,0.00038,4]
[325328160,1714729845585,-362.44,0.00038,14]
[325328164,1714729845596,-10000.0,0.00038,4]
[325328168,1714729845606,-16086.80696387,0.00038,4]
[325328171,1714729845616,-10811.90296197,0.00038,4]
[325328174,1714729845626,-7058.69394295,0.00038,4]
[325328177,1714729845635,-10257.04867956,0.00038,4]
[325328180,1714729845645,-10000.0,0.00038,4]
[325328183,1714729845655,-12513.37141016,0.00038,4]
[325328186,1714729845665,-178.45822995,0.00038121,2]
[325328190,1714729845675,-212.18410364,0.00038132,2]
[325328193,1714729845685,-986.06282356,0.000382,2]
[325328196,1714729845694,-459.40433115,0.00038212,2]
[325328198,1714729845704,-1400.0,0.00038232,10]
[325328200,1714729845714,-1100.0,0.00038232,10]
[325328203,1714729845725,-566.11,0.000383,7]
[325328205,1714729845735,-16034.89279595,0.00038333,2]
[325328207,1714729845745,-500.0,0.00038354,4]
[325328209,1714729845754,-500.0,0.00038354,4]
[325328211,1714729845764,-500.0,0.00038354,4]
[325328213,1714729845773,-500.0,0.00038354,4]
[325328215,1714729845783,-500.0,0.00038354,4]
[325328217,1714729845792,-500.0,0.00038354,4]
[325328219,1714729845802,-150.39,0.00038356,2]
[325328221,1714729845811,-2000.0,0.000384,22]
[325328223,1714729845821,-360.0,0.000384,2]
[325328225,1714729845831,-911.57,0.00038438,2]
[325328227,1714729845841,-414.36,0.00038438,2]
[325328229,1714729845853,-1000.0,0.000385,4]
[325328231,1714729845864,-260.0,0.000385,14]
[325328233,1714729845874,-100130.93810904,0.00038525,2]
[325328235,1714729845884,-522.59,0.00038575,2]
[325328237,1714729845893,-350.77,0.00038575,2]
[325328239,1714729845902,-203.08,0.00038575,2]
[325328240,1714729845912,-521.57,0.00038575,2]
[325328241,1714729845921,-203.06,0.00038575,2]
[325328242,1714729845930,-419.58,0.00038575,2]
[325328243,1714729845940,-522.59,0.00038575,2]
[325328244,1714729845949,-150.0,0.00038575,2]
[325328245,1714729845959,-163.01,0.00038575,2]
[325328246,1714729845969,-163.01,0.00038575,2]
[325328247,1714729845978,-419.58,0.00038575,2]
[325328248,1714729845988,-521.04,0.00038575,2]
[325328249,1714729845999,-150.0,0.00038575,2]
[325328250,1714729846008,-419.58,0.00038575,2]
[325328251,1714729846019,-300.0,0.00038575,2]
[325328252,1714729846029,-350.66,0.00038575,2]
[325328253,1714729846039,-906.06,0.000386,7]
[325328254,1714729846049,-150.0,0.00038604,2]
[325328255,1714729846059,-6500.0,0.000387,14]
[325328256,1714729846068,-1000.0,0.0003875,4]
[325328257,1714729846078,-151.51506521,0.00038753,12]
[325328258,1714729846088,-1400.0,0.0003878,10]
[325328259,1714729846098,-1100.0,0.0003878,10]
[325328260,1714729846108,-151.87422436,0.00038783,2]
[325328261,1714729846117,-3016.57574606,0.000388,28]
[325328262,1714729846128,-8100.0,0.000388,14]
[325328263,1714729846138,-150.0,0.00038849,2]
[325328265,1714729846148,-150.0,0.00038849,2]
[325328267,1714729846158,-150.0,0.00038849,2]
[325328268,1714729846167,-1008.38,0.0003887,2]
[325328269,1714729846177,-5840.80077841,0.000389,15]
[325328270,1714729846187,-1600.0,0.000389,14]
[325328271,1714729846197,-566.11,0.000389,7]
[325328272,1714729846206,-757.49729662,0.000389,2]
[325328273,1714729846216,-7761.92551934,0.000389,2]
[325328274,1714729846227,-881.87566879,0.000389,30]
[325328275,1714729846236,-50000.0,0.00039,19]
[325328276,1714729846247,-50000.0,0.00039,29]
[325328277,1714729846257,-1160.75673531,0.00039,2]
[325328278,1714729846266,-260.0,0.00039,14]
[325328279,1714729846276,-906.06,0.00039,7]
[325328280,1714729846286,-568.69628792,0.00039054,10]
[325328281,1714729846295,-309.36,0.0003906,2]
[325328282,1714729846306,-510.11746175,0.000392,7]
[325328283,1714729846315,-1029.90754829,0.000392,7]
[325328284,1714729846325,-150.39,0.00039269,2]
[325328285,1714729846334,-182.66917425,0.000393,13]
[325328286,1714729846344,-178.45822995,0.000393,2]
[325328287,1714729846354,-1400.0,0.00039328,10]
[325328288,1714729846364,-1100.0,0.00039328,10]
[325328289,1714729846374,-150.0,0.00039397,2]
[325328290,1714729846384,-150.0,0.00039397,2]
[325328291,1714729846398,-150.0,0.00039397,2]
[325328292,1714729846414,-150.0,0.00039397,2]
[325328293,1714729846425,-150.0,0.00039397,2]
[325328294,1714729846439,-206.97,0.00039397,2]
[325328295,1714729846448,-303.03,0.00039397,2]
[325328296,1714729846459,-911.57,0.00039397,2]
[325328297,1714729846469,-911.57,0.00039397,2]
[325328298,1714729846479,-911.57,0.00039397,2]
[325328299,1714729846490,-911.57,0.00039397,2]
[325328300,1714729846500,-911.57,0.00039397,2]
[325328301,1714729846510,-414.36,0.00039397,2]
[325328302,1714729846521,-911.57,0.00039397,2]
[325328303,1714729846530,-911.57,0.00039397,2]
[325328304,1714729846540,-911.57,0.00039397,2]
[325328305,1714729846550,-1149.85,0.00039397,2]
[325328306,1714729846560,-154.19,0.00039397,2]
[325328307,1714729846570,-126988.03567297,0.000394,7]
[325328308,1714729846605,-777.32478115,0.000394,7]
[325328309,1714729846617,-670.14303817,0.000394,7]
[325328310,1714729846629,-2870.3,0.000394,7]
[325328311,1714729846641,-925.13043544,0.000394,7]
[325328312,1714729846663,-384.61306457,0.000394,7]
[325328313,1714729848720,-324.23779872,0.00037,2]
[325328314,1714729848734,-255.0,0.00037,2]
[325328315,1714729848747,-5401.44220128,0.00037,2]
[325328316,1714729848756,-356.35779872,0.00038438,2]
[325328317,1714729848770,-378.29434134,0.00038438,2]
[325328318,1714729848786,-176.91785994,0.00038438,2]
[325328319,1714729848795,-392.34655756,0.00038438,2]
[325328320,1714729848806,-22.01344244,0.00038438,2]
[325328321,1714729848816,-553.37231356,0.000394,7]
[325328322,1714729848828,-558.18367625,0.000394,7]
[325328323,1714729848948,-71683.13852838,0.000394,7]
[325328324,1714729848958,-1008.10367701,0.000394,3]
[325328325,1714729848967,-57607.30398005,0.000394,2]
[325328329,1714730418976,3083.85801135,0.00010798,2]
[325328330,1714730431633,1477.55396935,0.00010798,2]
[325328332,1714730595650,-1912.06390101,0.00010798,2]
[325328333,1714730595674,-8087.93609899,0.00010798,2]
[325328334,1714730600874,-358.39086644,0.00010798,2]
[325328335,1714730600894,-155.0,0.00010798,2]
[325328336,1714730600914,-155.0,0.00010798,2]
[325328337,1714730600936,-3278.12915811,0.00010798,2]
[325328338,1714730600956,-2217.56096565,0.00010798,2]
[325328339,1714730600977,-3835.9190098,0.00010798,2]
[325328340,1714730602172,-752.05920445,0.00010798,2]
[325328341,1714730602192,-155.0,0.00010798,2]
[325328342,1714730602212,-155.0,0.00010798,2]
[325328343,1714730602233,-8937.94079555,0.00010798,2]
[325328344,1714730603230,-10000.0,0.00010798,2]
[325328345,1714730604724,-10000.0,0.00010798,2]
[325328346,1714730605899,-10000.0,0.00010798,2]
[325328347,1714730607175,-10000.0,0.00010798,2]
[325328348,1714730608434,-10000.0,0.00010798,2]
[325328349,1714730610019,-10000.0,0.00010798,2]
[325328350,1714730610617,-10000.0,0.00010798,2]
[325328351,1714730611592,-10000.0,0.00010798,2]
[325328352,1714730612869,-10000.0,0.00010798,2]
[325328353,1714730613779,-10000.0,0.00010798,2]
[325328354,1714730614806,-10000.0,0.00010798,2]
[325328355,1714730615710,-4488.49473688,0.00010798,2]
[325328356,1714730615732,-206.98863211,0.00010798,2]
[325328357,1714730615753,-155.0,0.00010798,2]
[325328358,1714730615774,-155.0,0.00010798,2]
[325328359,1714730615796,-3802.4238643,0.00010798,2]
[325328360,1714730615818,-1192.09276671,0.00010798,2]
[325328361,1714730618439,-10000.0,0.00010798,2]
[325328362,1714730620920,-10000.0,0.00010798,2]
[325328364,1714730622232,-10000.0,0.00010798,2]
[325328365,1714730624333,-10000.0,0.00010798,2]
[325328366,1714730625906,-10000.0,0.00010798,2]
[325328367,1714730628272,-10000.0,0.00010798,2]
[325328368,1714730659460,-467.5389,0.00010698,2]
[325328369,1714730659483,-3932.4611,0.00010798,2]
[325328378,1714730966774,-166.21191824,0.00010698,2]
[325328379,1714730967222,-150.0,0.00010797,2]
[325328380,1714730967252,-282.48705301,0.00010797,2]
[325328381,1714730967316,-17.51294699,0.00010797,2]
[325328382,1714730967347,-581.18602426,0.00010798,2]
[325328383,1714730967404,-598.69897125,0.00010798,2]
[325328384,1714730967456,-598.69897125,0.00010798,2]
[325328385,1714730967515,-598.69897125,0.00010798,2]
[325328386,1714730967564,-598.69897125,0.00010798,2]
[325328387,1714730967617,-598.69897125,0.00010798,2]
[325328388,1714730967661,-598.69897125,0.00010798,2]
[325328389,1714730967694,-444.44526927,0.00010798,2]
[325328390,1714731009177,-177.77,0.00010262,2]
[325328391,1714731009203,-9665.23,0.00010798,2]
[325328392,1714731020659,10000.0,0.0001,2]
[325328411,1714731032153,-722.23231057,0.00010798,2]
[325328412,1714731032170,-882.33461522,0.00010798,2]
[325328413,1714731032235,-504.69421276,0.00010798,2]
[325328414,1714731032252,-6666.6,0.00010798,2]
[325328415,1714731032268,-298.69050621,0.00010798,2]
[325328416,1714731032313,-316.66692342,0.00010798,2]
[325328417,1714731032330,-1271.24,0.00010798,2]
[325328418,1714731032352,-137739.66342679,0.00010798,2]
[325328419,1714731032368,-2450.0,0.00010798,2]
[325328420,1714731032384,-6600.0,0.00010798,2]
[325328421,1714731032407,-267.11689591,0.00010798,2]
[325328422,1714731032423,-2974.15,0.00010798,2]
[325328423,1714731032440,-2084.58601039,0.00010798,2]
[325328424,1714731032457,-25610.13643302,0.00010798,2]
[325328425,1714731032486,-15009.97125929,0.00010798,2]
[325328426,1714731032503,-8925.78038105,0.00010798,2]
[325328427,1714731032519,-8373.95054556,0.00010798,2]
[325328459,1714731038005,-415.10301408,0.00010798,2]
[325328461,1714731038017,-99257.96853893,0.00010798,2]
[325328463,1714731038027,-236.77556872,0.00010798,2]
[325328465,1714731038036,-1275.82150352,0.00010798,2]
[325328467,1714731038046,-684.85937217,0.00010798,2]
[325328469,1714731038056,-117.61841459,0.00010798,2]
[325328471,1714731038067,-59.92780925,0.00010798,2]
[325328474,1714731038077,-649.15485287,0.00010798,2]
[325328476,1714731038089,-461.61248665,0.00010798,2]
[325328478,1714731038101,-101.04686254,0.00010798,2]
[325328480,1714731038111,-150.23,0.0001096,2]
[325328481,1714731038120,-210.0,0.00011877,2]
[325328482,1714731038130,-440.100326,0.00012,2]
[325328483,1714731038141,-941.00123225,0.00012,2]
[325328484,1714731038153,-358.9537836,0.00012,2]
[325328485,1714731038186,-13284.55978005,0.00012,2]
[325328486,1714731038196,-426.00001,0.00012395,2]
[325328487,1714731038205,-1800.0,0.000125,4]
[325328488,1714731038215,-3600.0,0.000126,4]
[325328489,1714731038224,-5400.0,0.000127,4]
[325328490,1714731038235,-2016.25,0.000127,2]
[325328491,1714731038244,-13920.59502754,0.000128,2]
[325328492,1714731038254,-7200.0,0.000128,4]
[325328493,1714731038264,-964.55735086,0.000128,2]
[325328494,1714731038273,-499.99,0.000128,2]
[325328495,1714731038283,-1946.52,0.00012897,2]
[325328496,1714731038292,-150.99,0.00012897,2]
[325328497,1714731038302,-17781.9431,0.000129,2]
[325328498,1714731038312,-156.22184614,0.000129,2]
[325328499,1714731038322,-613.00620693,0.000129,2]
[325328500,1714731038331,-562.99,0.000129,2]
[325328501,1714731038341,-150.99,0.000129,2]
[325328502,1714731038351,-5333.82,0.000129,2]
[325328503,1714731038361,-179.36588224,0.000129,2]
[325328504,1714731038370,-9000.0,0.000129,4]
[325328505,1714731038381,-2134.10326344,0.000129,2]
[325328506,1714731038390,-362.5191781,0.000129,2]
[325328507,1714731038401,-190.80783043,0.000129,2]
[325328508,1714731038411,-212.21969678,0.000129,2]
[325328509,1714731038420,-172.4746835,0.000129,2]
[325328510,1714731038430,-166.36,0.00012945,2]
[325328511,1714731038439,-266.17605203,0.0001299,2]
[325328512,1714731038449,-266.17605203,0.0001299,2]
[325328513,1714731038458,-266.17605203,0.0001299,2]
[325328514,1714731038468,-150.23,0.0001299,2]
[325328515,1714731038477,-150.23,0.0001299,2]
[325328516,1714731038486,-150.23,0.0001299,2]
[325328517,1714731038495,-150.23,0.0001299,2]
[325328518,1714731038505,-150.23,0.0001299,2]
[325328519,1714731038514,-150.23,0.0001299,2]
[325328520,1714731038524,-16107.04634901,0.00013,2]
[325328521,1714731038535,-622.21983407,0.00013,2]
[325328522,1714731038547,-276507.50450816,0.00013,2]
[325328523,1714731038556,-3437963.56276196,0.00013,2]
[325328524,1714731038566,-2537.59,0.00013,2]
[325328525,1714731038575,-200.0,0.00013004,2]
[325328526,1714731038584,-23900.0,0.00013304,2]
[325328527,1714731038593,-173.55712462,0.00013399,2]
[325328528,1714731038603,-155.46,0.00013462,2]
[325328529,1714731038612,-14954.01,0.00013528,2]
[325328530,1714731038623,-7485.0,0.00013566,2]
[325328531,1714731038633,-155.46,0.00013813,2]
[325328532,1714731038642,-1240.18,0.00014008,2]
[325328533,1714731038651,-155.46,0.00014164,2]
[325328534,1714731038661,-287.12770703,0.00014199,2]
[325328535,1714731038671,-3711.91,0.00014402,2]
[325328536,1714731038680,-492.27,0.00014402,2]
[325328537,1714731038689,-964.55735073,0.0001495,2]
[325328538,1714731038699,-1280.12,0.00015007,2]
[325328539,1714731038708,-177.77,0.00015393,2]
[325328540,1714731038718,-200.0,0.00016438,2]
[325328541,1714731038728,-613.00620686,0.00016671,2]
[325328542,1714731038738,-5088.5566,0.00016897,2]
[325328543,1714731038748,-155.0,0.00016997,2]
[325328544,1714731038757,-360.01550888,0.00016997,2]
[325328545,1714731038769,-964.55735073,0.000171,2]
[325328546,1714731038778,-156.22184608,0.000173,2]
[325328547,1714731038786,-287.12770696,0.00017785,2]
[325328548,1714731038797,-164.09578584,0.0001788,2]
[325328549,1714731038806,-164.09578582,0.0001788,2]
[325328550,1714731038816,-224.71028306,0.0001788,2]
[325328551,1714731038825,-224.71028306,0.0001788,2]
[325328552,1714731038835,-224.71028306,0.0001788,2]
[325328553,1714731038846,-450.0,0.00018,3]
[325328554,1714731038855,-1000.0,0.00018736,2]
[325328555,1714731038865,-176.32,0.00018908,2]
[325328556,1714731038874,-250.0,0.00019116,2]
[325328557,1714731038884,-964.55735073,0.0001925,2]
[325328558,1714731038893,-200.0,0.00019416,2]
[325328559,1714731038902,-166.36,0.00019418,2]
[325328560,1714731038911,-634.24,0.000195,2]
[325328561,1714731038921,-283.05,0.000195,2]
[325328562,1714731038931,-877.08,0.000195,2]
[325328563,1714731038940,-10007.89605839,0.000199,2]
[325328564,1714731038950,-151.87422436,0.000199,2]
[325328565,1714731038959,-151.87422436,0.000199,2]
[325328566,1714731038970,-151.87422436,0.000199,2]
[325328567,1714731038979,-800.0,0.00019973,2]
[325328568,1714731038988,-500.0,0.0002,3]
[325328569,1714731038998,-155.0,0.0002,2]
[325328570,1714731039008,-293.29822192,0.0002,2]
[325328571,1714731039017,-155.0,0.0002,2]
[325328572,1714731039027,-155.0,0.00020026,2]
[325328573,1714731039036,-224.71028306,0.00020232,2]
[325328574,1714731039045,-613.00620686,0.00020443,2]
[325328575,1714731039055,-464.24,0.00020546,2]
[325328576,1714731039064,-4082.23,0.00020546,2]
[325328577,1714731039074,-1155.14723567,0.00021,2]
[325328578,1714731039083,-716.31163924,0.00021,2]
[325328579,1714731039092,-1000.0,0.00021078,2]
[325328580,1714731039101,-287.12770696,0.00021371,2]
[325328581,1714731039110,-964.55735073,0.000214,2]
[325328582,1714731039120,-151.87422436,0.00021427,2]
[325328583,1714731039129,-165.76,0.00021644,2]
[325328584,1714731039139,-174.11,0.00021644,2]
[325328585,1714731039148,-158.03,0.00021689,2]
[325328586,1714731039157,-158.03,0.00021694,2]
[325328587,1714731039167,-158.03,0.000217,2]
[325328588,1714731039176,-156.22184608,0.000217,2]
[325328589,1714731039186,-158.03,0.00021706,2]
[325328590,1714731039196,-158.03,0.00021711,2]
[325328591,1714731039205,-158.03,0.00021717,2]
[325328592,1714731039214,-158.03,0.00021723,2]
[325328593,1714731039223,-158.03,0.00021728,2]
[325328594,1714731039233,-158.03,0.00021734,2]
[325328595,1714731039242,-158.03,0.0002174,2]
[325328596,1714731039251,-158.03,0.00021746,2]
[325328597,1714731039260,-158.03,0.00021751,2]
[325328598,1714731039270,-158.03,0.00021757,2]
[325328599,1714731039280,-158.03,0.00021763,2]
[325328600,1714731039290,-158.03,0.00021768,2]
[325328601,1714731039300,-158.03,0.00021774,2]
[325328602,1714731039309,-158.03,0.0002178,2]
[325328603,1714731039319,-158.03,0.00021785,2]
[325328604,1714731039328,-158.03,0.00021791,2]
[325328605,1714731039338,-158.03,0.00021797,2]
[325328606,1714731039347,-1000.0,0.000219,2]
[325328607,1714731039357,-250.0,0.00021918,2]